[Event "*** Titled Tuesday Blitz"]
[Site "Chess.com"]
[Date "2020.01.07"]
[Round "1"]
[White "RubensCezila"]
[Black "DonPreuss"]
[Result "0-1"]
[WhiteElo "2537"]
[BlackElo "2149"]
[TimeControl "180+2"]
[EndTime "13:07:35 PST"]
[Termination "DonPreuss won by resignation"]

1. b3 {[%clk 0:03:00.2]} 1... Nc6 {[%clk 0:02:58.8]} 2. Bb2 {[%clk 0:03:01.4]}
2... e5 {[%clk 0:03:00.2]} 3. e3 {[%clk 0:03:02.6]} 3... d6 {[%clk 0:03:01.5]}
4. Bb5 {[%clk 0:03:01.9]} 4... g6 {[%clk 0:03:01.9]} 5. f4 {[%clk 0:03:01.4]}
5... Bg7 {[%clk 0:03:00.3]} 6. Nf3 {[%clk 0:03:02]} 6... Bg4 {[%clk 0:02:57.7]}
7. fxe5 {[%clk 0:02:58.3]} 7... dxe5 {[%clk 0:02:56.6]} 8. h3 {[%clk 0:02:44.7]}
8... Bxf3 {[%clk 0:02:50.3]} 9. Qxf3 {[%clk 0:02:46.1]} 9... Ne7 {[%clk
0:02:50.8]} 10. e4 {[%clk 0:02:25.3]} 10... O-O {[%clk 0:02:49.4]} 11. d3 {[%clk
0:02:19.4]} 11... Nd4 {[%clk 0:02:38.9]} 12. Bxd4 {[%clk 0:02:19.5]} 12... Qxd4
{[%clk 0:02:40.8]} 13. c3 {[%clk 0:02:20]} 13... Qc5 {[%clk 0:02:30.4]} 14. Bc4
{[%clk 0:02:20.9]} 14... b5 {[%clk 0:02:26.7]} 15. b4 {[%clk 0:02:21.9]} 15...
Qb6 {[%clk 0:02:22.1]} 16. Bb3 {[%clk 0:02:18.3]} 16... c5 {[%clk 0:02:10.9]}
17. bxc5 {[%clk 0:02:17.5]} 17... Qxc5 {[%clk 0:02:11.7]} 18. Qf2 {[%clk
0:02:18]} 18... Qd6 {[%clk 0:02:03]} 19. O-O {[%clk 0:02:10.5]} 19... Qxd3
{[%clk 0:02:00.9]} 20. Bxf7+ {[%clk 0:02:09.4]} 20... Kh8 {[%clk 0:02:01.9]} 21.
Qc5 {[%clk 0:02:10.9]} 21... Nf5 {[%clk 0:01:36.7]} 22. exf5 {[%clk 0:01:53.5]}
22... Rxf7 {[%clk 0:01:35.9]} 23. Na3 {[%clk 0:01:47.8]} 23... Rxf5 {[%clk
0:01:26.9]} 24. Rxf5 {[%clk 0:01:30]} 24... gxf5 {[%clk 0:01:27.5]} 25. Nxb5
{[%clk 0:01:30.3]} 25... e4 {[%clk 0:00:49.1]} 26. Qxf5 {[%clk 0:01:21.7]} 26...
Rf8 {[%clk 0:00:49.1]} 27. Qc5 {[%clk 0:01:13.5]} 27... e3 {[%clk 0:00:49]} 28.
Nd4 {[%clk 0:01:07.9]} 28... e2 {[%clk 0:00:46.2]} 29. Nxe2 {[%clk 0:01:07.8]}
29... Qxe2 {[%clk 0:00:45.2]} 30. a4 {[%clk 0:00:53]} 30... Qd3 {[%clk
0:00:40.2]} 31. Rc1 {[%clk 0:00:50.9]} 31... Qd2 {[%clk 0:00:38.2]} 32. Rf1
{[%clk 0:00:48.3]} 32... Rxf1+ {[%clk 0:00:29]} 33. Kxf1 {[%clk 0:00:50.2]}
33... Qxc3 {[%clk 0:00:28.3]} 34. Qxa7 {[%clk 0:00:47.5]} 34... Qd3+ {[%clk
0:00:26.1]} 0-1

[Event "*** Titled Tuesday Blitz"]
[Site "Chess.com"]
[Date "2020.01.07"]
[Round "1"]
[White "The_Bestplayer"]
[Black "hermionegrangermagic"]
[Result "1-0"]
[WhiteElo "2868"]
[BlackElo "2453"]
[TimeControl "180+2"]
[EndTime "13:07:36 PST"]
[Termination "The_Bestplayer won by resignation"]

1. e4 {[%clk 0:03:01.9]} 1... c5 {[%clk 0:02:56.5]} 2. Nf3 {[%clk 0:03:01]} 2...
Nc6 {[%clk 0:02:53.6]} 3. d4 {[%clk 0:03:02]} 3... cxd4 {[%clk 0:02:54.7]} 4.
Nxd4 {[%clk 0:03:03]} 4... e5 {[%clk 0:02:56.1]} 5. Nb5 {[%clk 0:03:03.2]} 5...
d6 {[%clk 0:02:57.3]} 6. N1c3 {[%clk 0:03:00.7]} 6... a6 {[%clk 0:02:56.8]} 7.
Na3 {[%clk 0:03:01.2]} 7... b5 {[%clk 0:02:58.3]} 8. Nab1 {[%clk 0:02:48.5]}
8... Nf6 {[%clk 0:02:56.3]} 9. Bg5 {[%clk 0:02:49.1]} 9... Be6 {[%clk
0:02:53.5]} 10. a4 {[%clk 0:02:44.9]} 10... b4 {[%clk 0:02:52.5]} 11. Nd5 {[%clk
0:02:46.3]} 11... Be7 {[%clk 0:02:44.1]} 12. Bxf6 {[%clk 0:02:44.7]} 12... Bxf6
{[%clk 0:02:45.2]} 13. Bc4 {[%clk 0:02:42.8]} 13... O-O {[%clk 0:02:40.9]} 14.
O-O {[%clk 0:02:42.3]} 14... a5 {[%clk 0:02:35.8]} 15. c3 {[%clk 0:02:27.4]}
15... g6 {[%clk 0:02:29.1]} 16. Nxf6+ {[%clk 0:02:16.4]} 16... Qxf6 {[%clk
0:02:28.8]} 17. Qxd6 {[%clk 0:02:17.8]} 17... Rfd8 {[%clk 0:01:55.1]} 18. Qxc6
{[%clk 0:02:14.7]} 18... Rac8 {[%clk 0:01:55.3]} 19. Qb6 {[%clk 0:02:11.8]}
19... Rxc4 {[%clk 0:01:53.7]} 20. Qxa5 {[%clk 0:02:10.8]} 20... Rxe4 {[%clk
0:01:49.4]} 21. cxb4 {[%clk 0:02:09.4]} 21... Rg4 {[%clk 0:01:36.7]} 22. Ra3
{[%clk 0:01:57.1]} 22... h5 {[%clk 0:01:15]} 23. h3 {[%clk 0:01:43.6]} 23... Rg5
{[%clk 0:01:14.8]} 24. Rf3 {[%clk 0:01:33.8]} 24... Bf5 {[%clk 0:00:55.2]} 25.
Nc3 {[%clk 0:01:29.1]} 25... Rd4 {[%clk 0:00:48.9]} 26. b5 {[%clk 0:01:07.5]}
26... Rf4 {[%clk 0:00:44.8]} 27. Nd5 {[%clk 0:01:04.8]} 27... Qd6 {[%clk
0:00:28.9]} 28. Nxf4 {[%clk 0:01:05.8]} 28... exf4 {[%clk 0:00:30.1]} 29. b6
{[%clk 0:01:01.1]} 29... f6 {[%clk 0:00:20.7]} 30. Qa8+ {[%clk 0:00:58.7]} 30...
Kg7 {[%clk 0:00:21]} 31. b7 {[%clk 0:00:54.5]} 31... Bxh3 {[%clk 0:00:20.5]} 32.
Rxh3 {[%clk 0:00:52.1]} 32... Qd5 {[%clk 0:00:20.7]} 33. b8=Q {[%clk 0:00:51.5]}
33... Rxg2+ {[%clk 0:00:21.3]} 34. Kh1 {[%clk 0:00:52.6]} 34... Qf5 {[%clk
0:00:16]} 35. Qh8+ {[%clk 0:00:51.3]} 1-0

[Event "*** Titled Tuesday Blitz"]
[Site "Chess.com"]
[Date "2020.01.07"]
[Round "1"]
[White "allvim"]
[Black "chito89"]
[Result "0-1"]
[WhiteElo "2356"]
[BlackElo "2711"]
[TimeControl "180+2"]
[EndTime "13:07:38 PST"]
[Termination "chito89 won by resignation"]

1. e4 {[%clk 0:02:55.4]} 1... g6 {[%clk 0:02:56.7]} 2. Nf3 {[%clk 0:02:53.4]}
2... Bg7 {[%clk 0:02:57.2]} 3. d4 {[%clk 0:02:53.9]} 3... d6 {[%clk 0:02:58.6]}
4. Bc4 {[%clk 0:02:54.1]} 4... a6 {[%clk 0:02:58.5]} 5. a4 {[%clk 0:02:54.3]}
5... e6 {[%clk 0:02:59]} 6. Nc3 {[%clk 0:02:54.7]} 6... b6 {[%clk 0:02:59.9]} 7.
O-O {[%clk 0:02:54.8]} 7... Bb7 {[%clk 0:03:00]} 8. Re1 {[%clk 0:02:52.3]} 8...
Ne7 {[%clk 0:03:00.7]} 9. Bf4 {[%clk 0:02:52.1]} 9... Nd7 {[%clk 0:03:01.4]} 10.
Qd2 {[%clk 0:02:52.8]} 10... h6 {[%clk 0:03:01.2]} 11. h3 {[%clk 0:02:49.6]}
11... Nf6 {[%clk 0:02:53.9]} 12. Rad1 {[%clk 0:02:40.8]} 12... d5 {[%clk
0:02:35.4]} 13. exd5 {[%clk 0:02:09.5]} 13... Nexd5 {[%clk 0:02:34.5]} 14. Nxd5
{[%clk 0:02:08.9]} 14... Nxd5 {[%clk 0:02:35.3]} 15. Bg3 {[%clk 0:02:07.8]}
15... O-O {[%clk 0:02:34]} 16. c3 {[%clk 0:01:55.1]} 16... Qc8 {[%clk
0:02:17.5]} 17. Bd3 {[%clk 0:01:42.1]} 17... c5 {[%clk 0:02:17.7]} 18. dxc5
{[%clk 0:01:39.2]} 18... Qxc5 {[%clk 0:02:18.2]} 19. Bc2 {[%clk 0:01:34.3]}
19... Rad8 {[%clk 0:02:17.2]} 20. Qc1 {[%clk 0:01:25.8]} 20... b5 {[%clk
0:02:09.8]} 21. axb5 {[%clk 0:01:22]} 21... axb5 {[%clk 0:02:10.1]} 22. Be5
{[%clk 0:01:12.4]} 22... b4 {[%clk 0:02:07]} 23. Bxg7 {[%clk 0:01:12.4]} 23...
Kxg7 {[%clk 0:02:07.8]} 24. cxb4 {[%clk 0:01:06.5]} 24... Nxb4 {[%clk
0:02:07.7]} 25. Bb1 {[%clk 0:01:05.7]} 25... Qxc1 {[%clk 0:02:05.2]} 26. Rxc1
{[%clk 0:01:05.9]} 26... Bxf3 {[%clk 0:02:06.2]} 27. gxf3 {[%clk 0:01:07.2]}
27... Nd5 {[%clk 0:02:02.4]} 28. Red1 {[%clk 0:00:56.3]} 28... Rb8 {[%clk
0:02:00.9]} 29. Rd2 {[%clk 0:00:49.3]} 29... Nf4 {[%clk 0:01:58.6]} 30. Kh2
{[%clk 0:00:49.1]} 30... g5 {[%clk 0:01:59.5]} 31. Rc7 {[%clk 0:00:45]} 31...
Rfc8 {[%clk 0:01:47.3]} 32. Rxc8 {[%clk 0:00:40.3]} 32... Rxc8 {[%clk
0:01:48.2]} 33. b4 {[%clk 0:00:41.4]} 33... Rc3 {[%clk 0:01:47.2]} 34. Be4
{[%clk 0:00:37.7]} 34... Rb3 {[%clk 0:01:47.8]} 35. Rd4 {[%clk 0:00:36.6]} 35...
Rb2 {[%clk 0:01:49.1]} 36. Rc4 {[%clk 0:00:28.3]} 36... Rxf2+ {[%clk 0:01:48.8]}
37. Kg1 {[%clk 0:00:28.7]} 37... Nxh3+ {[%clk 0:01:50.1]} 38. Kh1 {[%clk
0:00:28.7]} 38... Rb2 {[%clk 0:01:51.6]} 39. Bc6 {[%clk 0:00:28.2]} 39... h5
{[%clk 0:01:48.6]} 40. b5 {[%clk 0:00:29]} 40... f5 {[%clk 0:01:50]} 41. Rd4
{[%clk 0:00:28.6]} 41... g4 {[%clk 0:01:50.5]} 42. fxg4 {[%clk 0:00:29.4]} 42...
hxg4 {[%clk 0:01:51.2]} 43. Rd7+ {[%clk 0:00:31.3]} 43... Kf6 {[%clk 0:01:52]}
44. Rd8 {[%clk 0:00:32.3]} 44... g3 {[%clk 0:01:52.3]} 0-1

[Event "*** Titled Tuesday Blitz"]
[Site "Chess.com"]
[Date "2020.01.07"]
[Round "1"]
[White "MiroVlasenko"]
[Black "marcodobrikov"]
[Result "1-0"]
[WhiteElo "2693"]
[BlackElo "2348"]
[TimeControl "180+2"]
[EndTime "13:07:38 PST"]
[Termination "MiroVlasenko won by resignation"]

1. d4 {[%clk 0:03:01.9]} 1... Nf6 {[%clk 0:03:00.5]} 2. Bg5 {[%clk 0:03:02.3]}
2... c5 {[%clk 0:03:00.9]} 3. Bxf6 {[%clk 0:03:03.3]} 3... gxf6 {[%clk
0:03:01.6]} 4. d5 {[%clk 0:03:04.7]} 4... Qb6 {[%clk 0:03:01.6]} 5. Qc1 {[%clk
0:03:05.9]} 5... f5 {[%clk 0:03:02.6]} 6. e3 {[%clk 0:03:05]} 6... Bg7 {[%clk
0:03:03.4]} 7. c3 {[%clk 0:03:05.6]} 7... d6 {[%clk 0:03:04]} 8. Nh3 {[%clk
0:03:05.9]} 8... Nd7 {[%clk 0:03:04.4]} 9. Nd2 {[%clk 0:03:06.2]} 9... Nf6
{[%clk 0:03:02.7]} 10. Nf4 {[%clk 0:03:06.2]} 10... e5 {[%clk 0:03:02.9]} 11.
dxe6 {[%clk 0:03:01.6]} 11... fxe6 {[%clk 0:03:03.6]} 12. Be2 {[%clk 0:02:53.7]}
12... d5 {[%clk 0:03:03.3]} 13. O-O {[%clk 0:02:53.2]} 13... Qd6 {[%clk
0:03:01.8]} 14. c4 {[%clk 0:02:45.1]} 14... d4 {[%clk 0:03:00.5]} 15. Nb3 {[%clk
0:02:46]} 15... e5 {[%clk 0:03:00.1]} 16. Nh5 {[%clk 0:02:46.6]} 16... Be6
{[%clk 0:02:54.3]} 17. exd4 {[%clk 0:02:45.7]} 17... cxd4 {[%clk 0:02:54.2]} 18.
Qg5 {[%clk 0:02:41.5]} 18... Nxh5 {[%clk 0:02:45.6]} 19. Bxh5+ {[%clk
0:02:39.2]} 19... Kf8 {[%clk 0:02:46.3]} 20. Rae1 {[%clk 0:02:33.4]} 20... Qe7
{[%clk 0:02:40.7]} 21. Qd2 {[%clk 0:02:19.3]} 21... Bxc4 {[%clk 0:02:38.4]} 22.
Nxd4 {[%clk 0:02:11.4]} 22... Bxf1 {[%clk 0:02:38.8]} 23. Nxf5 {[%clk
0:02:10.1]} 23... Rd8 {[%clk 0:02:22.4]} 24. Qe3 {[%clk 0:02:08.2]} 24... Qf6
{[%clk 0:01:55.8]} 25. Qa3+ {[%clk 0:01:37.9]} 25... Kg8 {[%clk 0:01:55.6]} 26.
Ne7+ {[%clk 0:01:38.7]} 26... Kf8 {[%clk 0:01:56.6]} 27. Ng6+ {[%clk 0:01:39.5]}
27... Kg8 {[%clk 0:01:56.1]} 28. Nxh8 {[%clk 0:01:40.4]} 28... Bc4 {[%clk
0:01:53.1]} 29. Qc5 {[%clk 0:01:28.5]} 29... Be6 {[%clk 0:01:50.6]} 30. Qxa7
{[%clk 0:01:29]} 30... Kxh8 {[%clk 0:01:50.7]} 31. Qxb7 {[%clk 0:01:30.1]} 31...
Bd5 {[%clk 0:01:49.9]} 32. Qc7 {[%clk 0:01:23.3]} 32... Qg5 {[%clk 0:01:49.8]}
33. Bg4 {[%clk 0:01:24.1]} 33... Bf6 {[%clk 0:01:49.6]} 34. Bh3 {[%clk
0:01:22.9]} 34... Qg7 {[%clk 0:01:37.9]} 35. Qa5 {[%clk 0:01:19.9]} 35... Rg8
{[%clk 0:01:23.4]} 36. Qxd5 {[%clk 0:01:18.2]} 36... Rf8 {[%clk 0:01:19.2]} 37.
a4 {[%clk 0:01:15.4]} 37... h6 {[%clk 0:01:19.7]} 38. a5 {[%clk 0:01:15.5]}
38... Qa7 {[%clk 0:01:19.9]} 39. Rf1 {[%clk 0:01:12.5]} 39... Bg7 {[%clk
0:01:18.8]} 40. Bg4 {[%clk 0:01:10.9]} 40... Rb8 {[%clk 0:01:19.4]} 41. b3
{[%clk 0:01:09.3]} 41... Qd4 {[%clk 0:01:10.3]} 42. Qxd4 {[%clk 0:01:05.5]}
42... exd4 {[%clk 0:01:12.2]} 43. a6 {[%clk 0:01:04.9]} 43... Be5 {[%clk
0:01:06.1]} 44. Bf3 {[%clk 0:01:04.3]} 44... Ra8 {[%clk 0:00:58.3]} 45. Bxa8
{[%clk 0:01:04.3]} 1-0

[Event "*** Titled Tuesday Blitz"]
[Site "Chess.com"]
[Date "2020.01.07"]
[Round "1"]
[White "FelixJoseYnojosa"]
[Black "FearlessKing64"]
[Result "1-0"]
[WhiteElo "2650"]
[BlackElo "2318"]
[TimeControl "180+2"]
[EndTime "13:07:38 PST"]
[Termination "FelixJoseYnojosa won by resignation"]

1. c4 {[%clk 0:03:00.2]} 1... Nf6 {[%clk 0:02:59.2]} 2. Nc3 {[%clk 0:03:01.4]}
2... d5 {[%clk 0:02:59.8]} 3. cxd5 {[%clk 0:03:02.3]} 3... Nxd5 {[%clk
0:03:00.9]} 4. e4 {[%clk 0:03:04]} 4... Nxc3 {[%clk 0:02:57.5]} 5. bxc3 {[%clk
0:03:05.9]} 5... c5 {[%clk 0:02:57]} 6. Nf3 {[%clk 0:03:06.9]} 6... g6 {[%clk
0:02:58.4]} 7. d4 {[%clk 0:03:08.1]} 7... Bg7 {[%clk 0:02:59.9]} 8. Be3 {[%clk
0:03:09.2]} 8... Qa5 {[%clk 0:02:58.1]} 9. Qd2 {[%clk 0:03:04.9]} 9... Nc6
{[%clk 0:02:58]} 10. Rc1 {[%clk 0:03:04.9]} 10... cxd4 {[%clk 0:02:56.8]} 11.
cxd4 {[%clk 0:03:06.8]} 11... Qxd2+ {[%clk 0:02:58.2]} 12. Kxd2 {[%clk
0:03:07.6]} 12... O-O {[%clk 0:02:58.5]} 13. d5 {[%clk 0:03:08.7]} 13... Rd8
{[%clk 0:02:59.5]} 14. Kc2 {[%clk 0:03:00.6]} 14... Na5 {[%clk 0:02:36.1]} 15.
Bd2 {[%clk 0:02:45.8]} 15... b6 {[%clk 0:02:31.3]} 16. Bxa5 {[%clk 0:02:46.7]}
16... bxa5 {[%clk 0:02:32.9]} 17. Bc4 {[%clk 0:02:48.3]} 17... Bd7 {[%clk
0:02:00.4]} 18. Rb1 {[%clk 0:02:44.5]} 18... Rac8 {[%clk 0:01:54.2]} 19. Kd3
{[%clk 0:02:45.6]} 19... f5 {[%clk 0:01:31.6]} 20. Nd2 {[%clk 0:02:20]} 20...
fxe4+ {[%clk 0:01:27.2]} 21. Ke2 {[%clk 0:02:21.1]} 21... a6 {[%clk 0:01:07.8]}
22. d6+ {[%clk 0:02:19.8]} 22... Rxc4 {[%clk 0:01:08.6]} 23. Nxc4 {[%clk
0:02:11.5]} 23... Bb5 {[%clk 0:01:10]} 24. Rxb5 {[%clk 0:02:10.2]} 24... axb5
{[%clk 0:01:11.2]} 25. dxe7 {[%clk 0:02:11.2]} 25... Re8 {[%clk 0:01:08.3]} 26.
Nxa5 {[%clk 0:02:12.4]} 26... Rxe7 {[%clk 0:01:09.3]} 27. Rb1 {[%clk 0:02:13.4]}
27... Ra7 {[%clk 0:00:56.7]} 28. Rxb5 {[%clk 0:02:10.5]} 28... Bc3 {[%clk
0:00:57.5]} 29. Rb8+ {[%clk 0:01:57.1]} 29... Kg7 {[%clk 0:00:58.6]} 30. Rb7+
{[%clk 0:01:58.8]} 30... Rxb7 {[%clk 0:00:58.5]} 31. Nxb7 {[%clk 0:02:00.7]}
31... Kf6 {[%clk 0:00:53.5]} 32. a4 {[%clk 0:01:53.3]} 32... Ke5 {[%clk
0:00:52.8]} 33. a5 {[%clk 0:01:54.4]} 33... Kd5 {[%clk 0:00:41.5]} 34. a6 {[%clk
0:01:55.4]} 34... Bd4 {[%clk 0:00:42.5]} 35. Nd8 {[%clk 0:01:45.2]} 35... h5
{[%clk 0:00:32.8]} 36. h4 {[%clk 0:01:37]} 36... Bb6 {[%clk 0:00:26.1]} 37. Nf7
{[%clk 0:01:35.7]} 37... Ke6 {[%clk 0:00:26.1]} 38. Ng5+ {[%clk 0:01:36.7]}
38... Kf5 {[%clk 0:00:27.6]} 39. g3 {[%clk 0:01:30.7]} 39... Ke5 {[%clk
0:00:26.7]} 40. Nf7+ {[%clk 0:01:29.4]} 40... Kd5 {[%clk 0:00:26.5]} 41. Nh8
{[%clk 0:01:28.9]} 41... Kc6 {[%clk 0:00:19.4]} 42. Nxg6 {[%clk 0:01:29.1]}
42... Kb5 {[%clk 0:00:21.2]} 43. Nf4 {[%clk 0:01:28.8]} 43... Kxa6 {[%clk
0:00:22.5]} 44. Nxh5 {[%clk 0:01:30.2]} 44... Kb5 {[%clk 0:00:24.3]} 45. Nf6
{[%clk 0:01:31.7]} 1-0

[Event "*** Titled Tuesday Blitz"]
[Site "Chess.com"]
[Date "2020.01.07"]
[Round "1"]
[White "FMVolodymyrSakun"]
[Black "Bagirova"]
[Result "1-0"]
[WhiteElo "2549"]
[BlackElo "2116"]
[TimeControl "180+2"]
[EndTime "13:07:38 PST"]
[Termination "FMVolodymyrSakun won by resignation"]

1. e4 {[%clk 0:03:01.9]} 1... c5 {[%clk 0:02:59.4]} 2. Nf3 {[%clk 0:03:01.6]}
2... d6 {[%clk 0:03:00.1]} 3. d4 {[%clk 0:03:02.8]} 3... cxd4 {[%clk 0:03:00.8]}
4. Nxd4 {[%clk 0:03:04.1]} 4... Nf6 {[%clk 0:03:02.2]} 5. Nc3 {[%clk 0:03:04.8]}
5... a6 {[%clk 0:03:03.6]} 6. Be2 {[%clk 0:03:05.1]} 6... e6 {[%clk 0:03:04.8]}
7. O-O {[%clk 0:03:06.1]} 7... Be7 {[%clk 0:03:06]} 8. Be3 {[%clk 0:03:07.3]}
8... O-O {[%clk 0:03:07.2]} 9. f4 {[%clk 0:03:08.4]} 9... Qc7 {[%clk 0:03:06.7]}
10. Qe1 {[%clk 0:03:08.7]} 10... Nc6 {[%clk 0:03:06.7]} 11. Nb3 {[%clk
0:03:08.9]} 11... Bd7 {[%clk 0:03:07.2]} 12. Qg3 {[%clk 0:03:09.5]} 12... Nb4
{[%clk 0:03:03.1]} 13. Rac1 {[%clk 0:03:01.5]} 13... d5 {[%clk 0:02:59.5]} 14.
e5 {[%clk 0:03:00.9]} 14... Ne4 {[%clk 0:02:54.4]} 15. Nxe4 {[%clk 0:02:58.3]}
15... dxe4 {[%clk 0:02:55]} 16. f5 {[%clk 0:02:34.1]} 16... exf5 {[%clk
0:02:17.1]} 17. Nd4 {[%clk 0:02:34.6]} 17... Nd5 {[%clk 0:02:09.4]} 18. Bh6
{[%clk 0:02:29.8]} 18... g6 {[%clk 0:02:00.6]} 19. Bxf8 {[%clk 0:02:29.4]} 19...
Rxf8 {[%clk 0:01:49.4]} 20. Nxf5 {[%clk 0:02:12.2]} 20... Bxf5 {[%clk
0:01:35.3]} 21. Rxf5 {[%clk 0:02:13.1]} 21... Qb6+ {[%clk 0:01:24.1]} 22. Kh1
{[%clk 0:02:12]} 22... Qxb2 {[%clk 0:01:24.3]} 23. Rcf1 {[%clk 0:02:02.1]} 23...
Qxc2 {[%clk 0:01:19.1]} 24. e6 {[%clk 0:01:23.9]} 24... f6 {[%clk 0:00:42]} 25.
Bd1 {[%clk 0:01:11.1]} 25... Qc4 {[%clk 0:00:36.2]} 26. Bb3 {[%clk 0:01:10.1]}
26... Qe2 {[%clk 0:00:22.8]} 27. Bxd5 {[%clk 0:01:05]} 27... Kh8 {[%clk
0:00:24.1]} 28. R5f2 {[%clk 0:01:05.8]} 28... Qb5 {[%clk 0:00:23.8]} 29. Bxe4
{[%clk 0:01:05.8]} 29... f5 {[%clk 0:00:24]} 30. Bc2 {[%clk 0:01:05.1]} 30...
Bc5 {[%clk 0:00:20.9]} 31. Qc3+ {[%clk 0:01:03.6]} 31... Kg8 {[%clk 0:00:21.2]}
32. e7 {[%clk 0:01:03.2]} 32... Bxe7 {[%clk 0:00:20.7]} 33. Bb3+ {[%clk
0:01:03.8]} 33... Rf7 {[%clk 0:00:22.6]} 34. Qc8+ {[%clk 0:00:59.7]} 34... Kg7
{[%clk 0:00:21.9]} 35. Bxf7 {[%clk 0:00:59.6]} 35... Kxf7 {[%clk 0:00:23]} 36.
Rxf5+ {[%clk 0:01:00.7]} 1-0

[Event "*** Titled Tuesday Blitz"]
[Site "Chess.com"]
[Date "2020.01.07"]
[Round "1"]
[White "igorkovalenko"]
[Black "r31415"]
[Result "1-0"]
[WhiteElo "2908"]
[BlackElo "2480"]
[TimeControl "180+2"]
[EndTime "13:07:39 PST"]
[Termination "igorkovalenko won by resignation"]

1. e4 {[%clk 0:01:12.4]} 1... d6 {[%clk 0:02:59.9]} 2. d4 {[%clk 0:01:12.3]}
2... Nf6 {[%clk 0:03:01.1]} 3. Bd3 {[%clk 0:01:14]} 3... e5 {[%clk 0:03:01.7]}
4. Nf3 {[%clk 0:01:15.5]} 4... Nc6 {[%clk 0:02:55.5]} 5. c3 {[%clk 0:01:16.5]}
5... g6 {[%clk 0:02:55.5]} 6. O-O {[%clk 0:01:17.2]} 6... Bg7 {[%clk 0:02:56.7]}
7. Re1 {[%clk 0:01:18.9]} 7... O-O {[%clk 0:02:57.8]} 8. h3 {[%clk 0:01:20.5]}
8... Nd7 {[%clk 0:02:49.6]} 9. Be3 {[%clk 0:01:20.1]} 9... h6 {[%clk 0:02:46.9]}
10. Nbd2 {[%clk 0:01:16.1]} 10... f5 {[%clk 0:02:38.8]} 11. exf5 {[%clk
0:01:16.3]} 11... gxf5 {[%clk 0:02:40.7]} 12. dxe5 {[%clk 0:01:16.9]} 12...
Ndxe5 {[%clk 0:02:30.5]} 13. Bf1 {[%clk 0:01:13.4]} 13... f4 {[%clk 0:02:28.3]}
14. Bd4 {[%clk 0:01:12.4]} 14... Nxd4 {[%clk 0:02:28.9]} 15. cxd4 {[%clk
0:01:13]} 15... Ng6 {[%clk 0:02:28.6]} 16. Qb3+ {[%clk 0:01:12.7]} 16... Kh8
{[%clk 0:02:26.6]} 17. Bd3 {[%clk 0:01:12.8]} 17... Nh4 {[%clk 0:02:22.2]} 18.
Re2 {[%clk 0:01:08.2]} 18... Rb8 {[%clk 0:02:16.3]} 19. Rae1 {[%clk 0:01:08.2]}
19... Bf5 {[%clk 0:01:56.4]} 20. Nxh4 {[%clk 0:01:04.1]} 20... Bxd3 {[%clk
0:01:51.3]} 21. Qxd3 {[%clk 0:01:06]} 21... Qxh4 {[%clk 0:01:52.5]} 22. Nf3
{[%clk 0:01:07]} 22... Qf6 {[%clk 0:01:52.5]} 23. Re7 {[%clk 0:01:00.8]} 23...
Rf7 {[%clk 0:01:48]} 24. Re8+ {[%clk 0:00:57]} 24... Rxe8 {[%clk 0:01:46.7]} 25.
Rxe8+ {[%clk 0:00:58.9]} 25... Rf8 {[%clk 0:01:48]} 26. Rxf8+ {[%clk 0:00:57.5]}
26... Bxf8 {[%clk 0:01:43.8]} 27. Qb5 {[%clk 0:00:56.8]} 27... b6 {[%clk
0:01:32.6]} 28. Qc6 {[%clk 0:00:56.4]} 28... Qe7 {[%clk 0:01:31.7]} 29. b4
{[%clk 0:00:57.1]} 29... Bg7 {[%clk 0:01:29.7]} 30. b5 {[%clk 0:00:57.4]} 30...
Qf7 {[%clk 0:01:28.6]} 31. a4 {[%clk 0:00:55.3]} 31... Kh7 {[%clk 0:01:10.3]}
32. Qc2+ {[%clk 0:00:53]} 32... Kh8 {[%clk 0:01:10.9]} 33. Qe4 {[%clk
0:00:54.1]} 33... Bf8 {[%clk 0:00:57.1]} 34. Qa8 {[%clk 0:00:53.4]} 34... Kg7
{[%clk 0:00:51.1]} 35. Qxa7 {[%clk 0:00:51.4]} 35... Qc4 {[%clk 0:00:52.5]} 36.
a5 {[%clk 0:00:49.5]} 36... Qxb5 {[%clk 0:00:51]} 37. Qxc7+ {[%clk 0:00:50.1]}
37... Kg6 {[%clk 0:00:51.6]} 38. axb6 {[%clk 0:00:51.5]} 38... Qb1+ {[%clk
0:00:47.7]} 39. Kh2 {[%clk 0:00:52.3]} 39... Qb2 {[%clk 0:00:44.4]} 40. b7
{[%clk 0:00:53.1]} 1-0

[Event "*** Titled Tuesday Blitz"]
[Site "Chess.com"]
[Date "2020.01.07"]
[Round "1"]
[White "Jbd735"]
[Black "hansen"]
[Result "0-1"]
[WhiteElo "2460"]
[BlackElo "2882"]
[TimeControl "180+2"]
[EndTime "13:07:39 PST"]
[Termination "hansen won by checkmate"]

1. e4 {[%clk 0:03:01.5]} 1... c5 {[%clk 0:02:57.4]} 2. Nf3 {[%clk 0:03:02]} 2...
e6 {[%clk 0:02:58.5]} 3. d4 {[%clk 0:03:02.6]} 3... cxd4 {[%clk 0:03:00.1]} 4.
Nxd4 {[%clk 0:03:04.4]} 4... a6 {[%clk 0:03:01.1]} 5. Bd3 {[%clk 0:03:05.3]}
5... Qb6 {[%clk 0:03:02.1]} 6. Nb3 {[%clk 0:03:01.3]} 6... Qc7 {[%clk
0:03:03.2]} 7. O-O {[%clk 0:02:57.7]} 7... d6 {[%clk 0:02:55.1]} 8. c4 {[%clk
0:02:50.7]} 8... Nf6 {[%clk 0:02:55.6]} 9. Nc3 {[%clk 0:02:51.6]} 9... b6 {[%clk
0:02:30.9]} 10. Be3 {[%clk 0:02:46.6]} 10... Bb7 {[%clk 0:02:31.8]} 11. Re1
{[%clk 0:02:41.3]} 11... Nbd7 {[%clk 0:02:32.6]} 12. Rc1 {[%clk 0:02:38.6]}
12... Be7 {[%clk 0:02:33.5]} 13. f4 {[%clk 0:02:02.4]} 13... O-O {[%clk
0:02:33.1]} 14. Kh1 {[%clk 0:01:55.6]} 14... Nc5 {[%clk 0:02:27.3]} 15. Nxc5
{[%clk 0:01:51.7]} 15... bxc5 {[%clk 0:02:27.3]} 16. Qf3 {[%clk 0:01:38.1]}
16... Bc6 {[%clk 0:02:25.8]} 17. Qh3 {[%clk 0:01:35.6]} 17... g6 {[%clk
0:02:27.4]} 18. f5 {[%clk 0:01:23.1]} 18... Qd7 {[%clk 0:02:12.9]} 19. Bh6
{[%clk 0:01:18.9]} 19... Rfe8 {[%clk 0:02:06.3]} 20. Rf1 {[%clk 0:01:18.9]}
20... exf5 {[%clk 0:01:32.9]} 21. exf5 {[%clk 0:01:18]} 21... Bf8 {[%clk
0:01:34.3]} 22. Nd5 {[%clk 0:00:41.7]} 22... Bxd5 {[%clk 0:01:32.9]} 23. cxd5
{[%clk 0:00:42]} 23... Bxh6 {[%clk 0:01:34.2]} 24. Qxh6 {[%clk 0:00:42.2]} 24...
Ng4 {[%clk 0:01:34.5]} 25. Qh4 {[%clk 0:00:32.5]} 25... Ne5 {[%clk 0:01:23.7]}
26. fxg6 {[%clk 0:00:32.4]} 26... fxg6 {[%clk 0:01:23.2]} 27. Bc2 {[%clk
0:00:24.4]} 27... Rf8 {[%clk 0:01:23]} 28. Rce1 {[%clk 0:00:15.7]} 28... Qb5
{[%clk 0:01:21.1]} 29. Rxf8+ {[%clk 0:00:10.3]} 29... Rxf8 {[%clk 0:01:21.5]}
30. h3 {[%clk 0:00:07.7]} 30... Qxb2 {[%clk 0:01:22.1]} 31. Bb3 {[%clk
0:00:05.8]} 31... Qc3 {[%clk 0:00:58.1]} 32. Re4 {[%clk 0:00:06.5]} 32... Rf1+
{[%clk 0:00:50.5]} 33. Kh2 {[%clk 0:00:07.3]} 33... Nf3+ {[%clk 0:00:43.8]} 34.
gxf3 {[%clk 0:00:07.2]} 34... Qd2+ {[%clk 0:00:45.4]} 35. Kg3 {[%clk 0:00:07.3]}
35... Rg1# {[%clk 0:00:47]} 0-1